Cogmind - Beta 15 @@@ ROGUE MODE // 2025.05.31 @ 01:33:35 Player: Candle Result: Destroyed by E0-998(R) with Subdweller Shrapnel Launcher Performance ------------- Evolutions (0) 0 Regions Visited (2) 400 Robots Destroyed (28) 140 Value Destroyed (697) 697 Prototype IDs (0) 0 Alien Tech Used (0) 0 Bonus (0) 0 TOTAL SCORE: 1237 Bonus ------- None Cogmind --------- Core Integrity 0/250 Matter 265/300 Energy 100/100 System Corruption 1% Temperature Cool (0) Movement Rolling (230) Ox10 Location -10/Subcaves Parts ------- > --- POWER (1) -------- (None) > --- PROPULSION (2) --- Wheel Wheel > --- UTILITY (2) ------ Humpback > --- WEAPON (2) ------- Grenade Launcher > --- INVENTORY (35) --- Ion Engine Ion Engine Subdweller Power Source Subdweller Power Source Subdweller Monowheel Heat Sink Heat Sink Improved Heat Sink Medium Matter Pod (100) Subdweller Optics Light Armor Plating Light Armor Plating Light Armor Plating Hacking Suite Small Laser Particle Gun Mining Laser Hammer Scrap Shield Fragment (49) Scrap Shield Fragment (49) Scrap Shield Fragment (49) Scrap Shield Fragment (48) Scrap Shield Fragment (48) Peak State ------------ > --- POWER ------------ Ion Engine > --- PROPULSION ------- Wheel Wheel > --- UTILITY ---------- Humpback > --- WEAPON ----------- Small Laser Particle Gun > --- INVENTORY -------- Ion Engine Ion Engine Subdweller Power Source Subdweller Power Source Subdweller Monowheel Heat Sink Heat Sink Improved Heat Sink Medium Matter Pod Subdweller Optics Light Armor Plating Light Armor Plating Light Armor Plating Hacking Suite Small Laser Grenade Launcher Grenade Launcher Mining Laser Hammer Scrap Shield Fragment Scrap Shield Fragment [Rating: 11] Favorites ----------- Power Ion Engine Engine Ion Engine Propulsion Wheel Treads Light Treads Wheel Wheel Utility Humpback Storage Humpback Protection Light Armor Plating Weapon Small Laser Energy Gun Small Laser Launcher Grenade Launcher Build | -11 -10 -10 ------- Run | Yrd Mat Sub Slots Evolved . | . . . Power . | . . . Propulsion . | . . . Utility . | . . . Weapon . | . . . Parts Attached 23 | 5 16 2 Power 4 | 1 3 . Engine 4 | 1 3 . Core . | . . . Reactor . | . . . Propulsion 8 | 2 6 . Treads 2 | 2 . . Leg . | . . . Wheel 6 | . 6 . Hover . | . . . Flight . | . . . Utility 5 | 1 4 . Device . | . . . Storage 3 | 1 2 . Processor . | . . . Hackware . | . . . Protection 2 | . 2 . Artifact . | . . . Weapon 6 | 1 3 2 Energy Gun 4 | 1 3 . Energy Cannon . | . . . Ballistic Gun . | . . . Ballistic Cannon . | . . . Launcher 2 | . . 2 Special Weapon . | . . . Impact Weapon . | . . . Slashing Weapon . | . . . Piercing Weapon . | . . . Special Melee Weapon . | . . . Unidentified Prototypes . | . . . Parts Lost 6 | . 2 4 Power 1 | . . 1 Propulsion 3 | . 2 1 Utility . | . . . Weapon 2 | . . 2 Highest Loss Streak 3 | . 1 3 To Critical Strikes . | . . . Average Backups 13 | 1 13 18 Power 2 | . 2 3 Propulsion 2 | . 2 1 Utility 5 | . 4 8 Weapon 4 | . 4 4 Tool/Special . | . . . Unused Backups 17 | . 2 15 Power 4 | . 1 3 Propulsion 1 | . . 1 Utility 8 | . . 8 Weapon 4 | . 1 3 Tool/Special . | . . . Average Slot Usage (%) 85 | . 85 85 Engine 14 | . 14 14 Treads 7 | . 8 . Wheel 18 | . 17 28 Storage 14 | . 14 14 Protection 2 | . 2 . Energy Gun 26 | . 26 28 Peak Build Rating 11 | 5 10 11 Average Rating 8 | 4 8 10 On Entrance 5 | . 5 10 Naked Turns . | . . . Heaviest Build 209 | 11 209 209 Greatest Support 40 | 40 40 20 Greatest Overweight (x) 69 | . 69 10 Average Overweight (x) 6 | . 6 10 Largest Inventory Capacity 35 | 8 35 35 Average Capacity 26 | 7 25 35 Most Carried 24 | 3 21 24 Average Carried 14 | 1 14 20 Final Capacity 35 | 8 35 35 Final Carried 23 | 3 20 23 Class Distribution -------------------- 68% | Hauler-Mutant 31% | Mutant Dominant Class ---------------- Hauler-Mutant | -10/Materials Hauler-Mutant | -10/Subcaves Resources | -11 -10 -10 ----------- Run | Yrd Mat Sub Matter Collected 478 | 250 200 28 Remotely . | . . . Salvage Created 973 | 73 794 106 Parts 47 | 5 40 2 Haulers Intercepted 2 | . 2 . Recyclers Shooed 1 | 1 . . Parts Field Recycled . | . . . Retrieved Matter . | . . . Parts Self-Destructed 8 | . . 8 Prevented . | . . . Kills | -11 -10 -10 ------- Run | Yrd Mat Sub Combat Hostiles Destroyed 17 | . 14 3 Guns 15 | . 13 2 AOE 1 | . . 1 Classes Destroyed 8 | 2 6 . Tunneler 1 | 1 . . Hauler 2 | . 2 . Recycler 3 | 1 2 . Operator 2 | . 2 . Watcher 3 | . 3 . Swarmer 3 | . 3 . Grunt 8 | . 8 . Subdweller 6 | . 3 3 Best Kill Streak 3 | 2 3 1 Combat Bots Only 3 | . 3 1 Max Kills in Single Turn 2 | 1 2 1 Gunslinging . | . . . Exploded 1 | . . 1 Melee . | . . . Uniques/NPCs Destroyed . | . . . Combat | -11 -10 -10 -------- Run | Yrd Mat Sub Hostile Shots Fired 122 | . 103 19 Missed 31 | . 27 4 Hits 91 | . 76 15 Projectile 91 | . 76 15 AOE 5 | . . 5 Damage Taken 1381 | . 877 504 Core 269 | . 158 111 Absorbed by Shields . | . . . Regen/Repaired (Parts) 52 | . 52 . Core Remaining (%) 100 | 100 . . Volleys Fired 117 | 11 96 10 Largest 2 | 1 2 2 Hottest 105 | 40 105 105 Shots Fired 192 | 11 161 20 Gun 189 | 11 161 17 Cannon . | . . . Launcher 3 | . . 3 Special . | . . . Kinetic . | . . . Thermal 189 | 11 161 17 Explosive 3 | . . 3 Electromagnetic . | . . . Robot Hit Streak 11 | 4 11 6 Robot Miss Streak 9 | 2 9 2 Penetration Max . | . . . Secondary Targets . | . . . Shots Hit Robots 109 | 8 90 11 Core Hits 48 | 3 37 8 Critical Kills . | . . . Critical Parts Destroyed . | . . . Critical Strikes 8 | . 6 2 Burn 8 | . 6 2 Melee Attacks . | . . . Impact . | . . . Slashing . | . . . Piercing . | . . . Sneak Attacks . | . . . Combat Hostiles . | . . . Follow-up Attacks . | . . . Damage Inflicted 1587 | 88 1222 277 Guns 1464 | 88 1217 159 Cannons . | . . . Explosions 118 | . . 118 Melee . | . . . Ramming 5 | . 5 . Kinetic . | . . . Thermal 1464 | 88 1217 159 Explosive 118 | . . 118 Electromagnetic . | . . . Impact . | . . . Slashing . | . . . Piercing . | . . . Highest Corruption 1 | . 1 1 Average Corruption 1 | . 1 1 Corruption Purged . | . . . Corruption Blocked . | . . . Effects 8 | . 2 6 Matter Fused 3 | . . 3 Data Loss (minor) 1 | . 1 . Data Loss (major) 2 | . . 2 Misfires 1 | . . 1 Alerts 1 | . 1 . Overload Shots . | . . . Overflow Damage . | . . . Projectiles . | . . . Explosions . | . . . Melee . | . . . Knockbacks . | . . . Impact . | . . . Kinetic . | . . . Secondary . | . . . Self-Inflicted Damage 2 | . 2 . Shots . | . . . Rammed 1 | . 1 . Targets Rammed 1 | . 1 . Kicked . | . . . Crushed . | . . . Highest Temperature 354 | . 354 1 Average Temperature 110 | . 110 1 Received Heat Transfer 381 | . 357 24 Effects 3 | . 3 . Shutdowns 1 | . 1 . Interference 2 | . 2 . Siege Activations . | . . . Martial Activations . | . . . Shielding Activations . | . . . Robots Disrupted . | . . . Combat Hostiles . | . . . Robots Corrupted . | . . . Combat Hostiles . | . . . Parts Fried . | . . . Impact Corruptions . | . . . Robots Melted 1 | . 1 . Combat Hostiles 1 | . 1 . Parts Melted 6 | . 5 1 Heat Transferred 3944 | 200 3237 507 Parts Sabotaged . | . . . Parts Stolen . | . . . Parts Stripped . | . . . Power Chain Reactions . | . . . Alert | -11 -10 -10 ------- Run | Yrd Mat Sub Maximum Alert Level . | . . . Low Security (%) 100 | 100 100 . Level 1 . | . . . Level 2 . | . . . Level 3 . | . . . Level 4 . | . . . Level 5 . | . . . High Security . | . . . Max Security . | . . . Peak Influence 70 | 5 70 . Initial . | . . . Average 9 | 1 9 . Influence Increases 405 | 10 395 . Destroy 0b10 Robot/C 220 | . 220 . Destroy 0b10 Robot/NC 55 | 10 45 . Destroy Leader 50 | . 50 . Successful Hack 35 | . 35 . Disable Machine 30 | . 30 . Lose Combat Pursuer 15 | . 15 . Influence Decreases 405 | 10 381 14 Entered New Map 7 | . . 7 Time Decay 378 | 10 361 7 Lost Part 20 | . 20 . Squads Dispatched 1 | . 1 . Investigation . | . . . Extermination . | . . . Reinforcement 1 | . 1 . Assault . | . . . Garrison . | . . . Intercept . | . . . Searches Triggered . | . . . Construction Impeded . | . . . Haulers Reinforced . | . . . Active Scanning Responses . | . . . Cargo Convoy Interrupts . | . . . Stealth | -11 -10 -10 --------- Run | Yrd Mat Sub Distress Signals 3 | . 3 . Communications Jammed . | . . . Distress Signals . | . . . Times Spotted 35 | . 31 4 Peak Tracking Total 3 | . 3 2 Tactical Retreats 2 | . 2 . Traps | -11 -10 -10 ------- Run | Yrd Mat Sub Traps Triggered . | . . . Indirectly . | . . . Trap Hack Attempts . | . . . Triggered . | . . . Disarmed . | . . . Reprogrammed . | . . . Reused . | . . . Traps Extracted . | . . . Installed . | . . . Triggered . | . . . Machines | -11 -10 -10 ---------- Run | Yrd Mat Sub Machines Disabled 2 | . 2 . Max in Single Turn 1 | . 1 . Machines Repaired . | . . . Machines Dismantled . | . . . Machines Sabotaged . | . . . Overloaded Fab Kills . | . . . Hacking | -11 -10 -10 --------- Run | Yrd Mat Sub Machines Accessed 9 | . 9 . Terminals 7 | . 7 . Fabricators . | . . . Repair Stations 1 | . 1 . Recycling Units 1 | . 1 . Scanalyzers . | . . . Garrison Access . | . . . Total Hacks 24 | . 24 . Successful 15 | . 15 . Failed 9 | . 9 . Catastrophic . | . . . Database Lockouts . | . . . Manual 13 | . 13 . Terminals 18 | . 18 . Fabricators . | . . . Repair Stations 3 | . 3 . Recycling Units 3 | . 3 . Scanalyzers . | . . . Garrison Access . | . . . Terminal Hacks 6 | . 6 . Robot Analysis 1 | . 1 . Terminal Index 1 | . 1 . Locate Traps 2 | . 2 . Registered Components 1 | . 1 . Zone Layout 1 | . 1 . Fabricator Hacks . | . . . Repair Station Hacks 2 | . 2 . Scan Component 1 | . 1 . Repair 1 | . 1 . Recycling Unit Hacks 1 | . 1 . Report Inventory 1 | . 1 . Scanalyzer . | . . . Garrison Access Hacks . | . . . Unauthorized Hacks 6 | . 6 . Terminals 6 | . 6 . Assimilate 2 | . 2 . Botnet 2 | . 2 . Operators 2 | . 2 . Fabricators . | . . . Repair Stations . | . . . Recycling Units . | . . . Scanalyzers . | . . . Garrison Access . | . . . Data Cores Recovered 1 | . 1 . Used . | . . . Hacking Detections 8 | . 8 . Full Trace Events 2 | . 2 . Feedback Events 1 | . 1 . Corruption 1 | . 1 . Feedback Blocked . | . . . Robot Schematics Acquired . | . . . Robots Built . | . . . Authchips . | . . . Time . | . . . Total Robot Build Rating . | . . . Part Schematics Acquired . | . . . Parts Built . | . . . Authchips . | . . . Time . | . . . Total Part Build Rating . | . . . Parts Repaired 1 | . 1 . Time 32 | . 32 . Parts Recycled . | . . . Recycled Matter . | . . . Retrieved Matter . | . . . Retrieved Components . | . . . Parts Scanalyzed . | . . . Part Schematics Acquired . | . . . Parts Damaged . | . . . Bothacking | -11 -10 -10 ------------ Run | Yrd Mat Sub Used RIF Installer . | . . . Robots Hacked . | . . . Non-combat . | . . . Combat . | . . . Robot Hacks Applied . | . . . Relay Couplers Released . | . . . Fabnet Peak Effective % . | . . . Robots Rewired . | . . . Allies Hacked . | . . . Hacks Repelled . | . . . Allies | -11 -10 -10 -------- Run | Yrd Mat Sub Total Allies . | . . . Largest Group . | . . . Highest-Rated Group . | . . . Highest-Rated Ally . | . . . Total Orders . | . . . Ally Attacks . | . . . Total Damage . | . . . Kills . | . . . Allies Corrupted . | . . . Allies Melted . | . . . Intel | -11 -10 -10 ------- Run | Yrd Mat Sub Active Infowar (turns) . | . . . Robot Analysis Total 1 | . 1 . Derelict Logs Recovered . | . . . Drone Launches . | . . . Drone Recoveries . | . . . Exploration | -11 -10 -10 ------------- Run | Yrd Mat Sub Turns Passed 3048 | 126 2547 375 Spaces Moved 1162 | 62 997 103 Core 7 | 4 3 . Treads 411 | 58 353 . Legs . | . . . Wheels 744 | . 641 103 Hover . | . . . Flight . | . . . Fastest Speed 50 | 50 90 230 Average Speed 208 | 152 209 230 Slowest Speed 3500 | 160 3500 230 Overloaded Moves . | . . . Propulsion Burnouts . | . . . Robots Hopped . | . . . Potential Cave-ins . | . . . Cave-ins Triggered . | . . . Exploration Rate (%) 38 | 6 97 12 Regions Visited 2 Branch Regions 1 Pre-discovered Areas . | . . . Known Exits Taken . | . . . Unknown Exits Taken 2 | 1 1 . Scrap Searched . | . . . Spaces Dug . | . . . Terrain Destroyed 2 | . . 2 Melee . | . . . Projectile . | . . . AOE 2 | . . 2 Terrain Rammed . | . . . Walls Destroyed . | . . . Machines Disabled . | . . . Actions | -11 -10 -10 --------- Run | Yrd Mat Sub Total 1593 | 80 1291 222 Wait 239 | . 138 101 Move 1160 | 61 996 103 Hop . | . . . Pick Up 34 | 3 26 5 Fast Attach 13 | 5 8 . Attach 3 | . 1 2 Detach 1 | . 1 . Swap 12 | . 11 1 Drop 13 | . 13 . Fire 117 | 11 96 10 Melee . | . . . Ram 1 | . 1 . Kick . | . . . Crush . | . . . Escape Stasis . | . . . Rewire . | . . . Trap . | . . . Miscellaneous . | . . . Route ------- -11/Scrapyard -10/Materials (discovered 5 exits: [*Mat x3] / [*Min] / [*Sub]) -10/Subcaves (discovered 1 exit: [Scr]) History --------- Turn | Location | Event 7 | -11/Scrapyard | Discovered new exit (range 14) 127 | -11/Scrapyard | Entered Materials 335 | -10/Materials | Build established: Mutant 400 | -10/Materials | Discovered new exit (range 8) 817 | -10/Materials | Discovered new exit (range 10) 827 | -10/Materials | Derelicts attacked the area 1061 | -10/Materials | Core integrity fell below 50% 1287 | -10/Materials | Build established: Hauler-Mutant 1748 | -10/Materials | Discovered new exit (range 10) 1863 | -10/Materials | Discovered new exit (range 15) 2001 | -10/Materials | Discovered new exit (range 13) 2535 | -10/Materials | Repaired Particle Gun 2674 | -10/Materials | Entered Subcaves 2675 | -10/Subcaves | A swath of the cavern ceiling suddenly collapsed 2675 | -10/Subcaves | Approached by a straggling Scientist 2908 | -10/Subcaves | Scientist uncovered a shortcut to Scraptown 3034 | -10/Subcaves | Ambushed by Subdwellers from Twisted Machinery 3036 | -10/Subcaves | Core integrity fell below 20% 3049 | -10/Subcaves | Destroyed by E0-998(R) with Subdweller Shrapnel Launcher Last Messages --------------- L6-4EA(R) destroyed. Subatomizers dissect the Sub. Optics. Acquired 10 matter. System corrupted: Substantial component data lost. Acquired Sub. Power Source. Acquired Sub. Optics. System corrupted: Matter fused (-7). Sub. Power Source melted. 79-HRX(R) destroyed. Acquired 7 matter. Acquired Scrap Shield Fragment. System corrupted: FCS attempts to trigger Particle Gun. System corrupted: Particle Gun misfires. E0-998(R) emerges from the Twisted Machinery. Sml. Laser destroyed. Ion Engine destroyed. Grenade Launcher destroyed. DU-6PM(R) destroyed. Map ----- +----------------------------------------------------+ | # #?## #####??????????????????????????? | | # # ###???## ###??????????????????????????????? | | #??# ????????# #???????????????????????????????? | | ???# ?????#?### ####?????????????????????????????? | | ? # # # # #?????????????????????????????? | | #??????????????????????????????? | | # #??????????????????????????????? | | # ## ## # # # #??????????????????????????????? | | ?????????#?##### #??????????????????????????????? | | ?????????????# #???????? ????????????????????? | | ????????????## #???????? ??##????????????????? | | ????????????# ##??????? ## #?##?????????????? | | ????????????# ##?????? ## ?????????????? | | ????????##?## %%##????? ?????????????? | | ???????## ## ### ##???? ??????????????? | | ????# # #### ##??? ????? ????????? | | ????# #?# ##?? #???? ????????? | | ???# #?# % ##?# #### ???????? | | ???### ##?# #?# ???????? | | ?????### ###??# ### "???????? | | ???????# ###????# ### # & "???????? | | ?????? ####??????# #; R% #???????? | | ????? ?????###### & #???????? | | ???? ??####""" #???????????? | | ???### ?## " #???????????? | | ?????## ??# @ #???????????? | | ??????##??# ## #???????????? | | ??????????# ??## #??????????? | | ?????????# ### ; ## #?????????? | | ?????????# "% ;; #??? #????????? | | ?????????# "" ""## ### #????? #???????? | | ????????# " """##??? #??????????????? | | ?????? " """#????? ##??????????????? | | ?????? """"""????? ##???????????????? | | ??????? """""????? #????????????????? | | ??????? ## % "" ?????? #????????????????? | | ???????? ?### " ??????? #????????????????? | | ????????## ????# ? ???????? ##????????????????? | | ?????????# ?????# ??????????? ?????????????????? | | ????????????????? ??????????? ??????????????????? | | ?????????????????? ??????????????????????????????? | | ?????????????????????????????????????????????????? | | ?????????????????????????????????????????????????? | | ?????????????????????????????????????????????????? | | ?????????????????????????????????????????????????? | | ?????????????????????????????????????????????????? | | ?????????????????????????????????????????????????? | | ?????????????????????????????????????????????????? | | ?????????????????????????????????????????????????? | | ?????????????????????????????????????????????????? | +----------------------------------------------------+ Best States ------------- Heat Dissipation 25 Energy Generation 10 Energy Capacity 250 Matter Stores 300 Matter Capacity 300 Sight Range 16 Terrain Scan Density 10 Armor Coverage 150 Evasion (%) 41 Recoil Reduction 2 Item Schematics ----------------- None Robot Schematics ------------------ None Fabricated ------------ Nothing Repaired ---------- Particle Gun | 30% | -10/Materials Alien Tech Used ----------------- None Achievements -------------- None Challenges ------------ None Game ------ Seed RiotFortressBeamcaster Manual? 0 Play Time 00:18:19 Cumulative 116.4 hours Start 2025.05.31 @ 01:12:28 End 2025.05.31 @ 01:33:35 Sessions 1 Manual Loads 0 Difficulty Rogue Special Mode None Game No. 149 Rogue 149 Adventurer 0 Explorer 0 Win Type - Total 0 Types 0/0/0/0/0/0/0/0/0/0 Lore% 36 Gallery% 35 Achievement% 32 Wizard Run 0 Options --------- Layout 1 ASCII 0 Keyboard 0 Movement Mouse Keybinds 0 Fullscreen 1 Font 32/SmallcapsGlow Map View 50x40 Zoom Use 0% Tactical HUD 0 Map Filters NONE Filters NONE Steam 1 RUN: 83a70688-ae9b-4fef-8385-23134ed035a2